bitfinex-derivatives/quotes_ETHF0:USTF0_20250416
["timestamp","ask_amount","ask_price","bid_price","bid_amount"]
[1744780367607,2.17043,1593.2,1593.1,3.2078]
[1744780367809,2.17043,1593.2,1593.1,4.8911]
[1744780368308,1.25543,1593.2,1593.1,6.14661]
[1744780369408,5.58839,1593.3,1593.2,1.25543]
[1744780369606,5.57917313,1593.3,1593.2,4.70623]
[1744780370802,5.57913313,1593.3,1593.2,4.70623]
[1744780371209,5.57913313,1593.3,1593.2,2.6274]
[1744780372013,5.57913313,1593.3,1593.2,1.7277]
[1744780372211,1.25559,1593.0,1592.9,2.12613]
[1744780372410,1.25559,1593.0,1592.9,7.52044628]
[1744780372610,2.97137,1593.1,1593.0,1.25559]
[1744780372812,2.97137,1593.1,1592.9,5.3339]
[1744780373013,1.25559,1593.0,1592.9,5.3339]
[1744780373214,1.7158,1593.1,1593.0,1.25559]
[1744780373407,1.25546,1593.2,1593.1,1.25545]
[1744780373714,1.25546,1593.2,1593.1,5.33415]
[1744780374418,1.25546,1593.2,1593.1,5.80252337]
[1744780376104,1.25546,1593.2,1593.1,5.80255086]
[1744780376817,1.25546,1593.2,1593.1,4.54710086]
[1744780377415,1.25546,1593.2,1593.1,4.0787]
[1744780377616,1.25546,1593.2,1593.1,3.2078]
[1744780378517,1.25546,1593.2,1593.1,4.46331]
[1744780378921,1.25546,1593.2,1593.1,4.93191763]
[1744780379218,1.25546,1593.2,1593.1,3.2078]
[1744780379721,2.87256,1593.2,1593.1,3.2078]
[1744780379916,1.25559,1593.0,1592.9,3.2078]
[1744780380217,5.58559,1593.0,1592.9,3.2078]
[1744780380418,7.20269,1593.0,1592.9,3.2078]
[1744780381717,12.20269,1593.0,1592.9,3.2078]
[1744780381914,1.25575,1592.8,1592.7,4.47303973]
[1744780382718,1.25573,1592.9,1592.7,3.21721973]
[1744780383015,1.25573,1592.9,1592.8,0.8445]
[1744780383211,1.25575,1592.8,1592.7,4.47303973]
[1744780383610,1.25573,1592.9,1592.8,1.25575]
[1744780383815,1.25573,1592.9,1592.7,4.47298973]
[1744780384422,1.25573,1592.9,1592.8,1.25575]
[1744780384920,1.25573,1592.9,1592.7,3.21721973]
[1744780385122,1.25575,1592.8,1592.7,4.47297973]
[1744780385815,1.25575,1592.8,1592.7,3.21721973]
[1744780386824,2.94895,1592.8,1592.7,3.21721973]
[1744780387119,1.25573,1592.9,1592.8,1.25573]
[1744780388823,1.25575,1592.8,1592.7,4.47298973]
[1744780389023,1.25572,1592.9,1592.8,1.25568]
[1744780389321,1.25563,1593.0,1592.9,1.25561]
[1744780389623,1.25563,1593.0,1592.9,4.46341]
[1744780390018,1.25563,1593.0,1592.9,5.35241]
[1744780390620,1.25551,1593.2,1593.1,1.25549]
[1744780390923,1.25543,1593.2,1593.1,3.2078]
[1744780391816,1.25543,1593.2,1593.1,4.8531]
[1744780392013,1.25559,1593.0,1592.9,4.0968]
[1744780392224,3.13871,1593.2,1592.9,4.0968]
[1744780392418,1.25559,1593.0,1592.9,2.14461]
[1744780392624,1.25559,1593.0,1592.9,5.35247]
[1744780393025,1.25554,1593.1,1593.0,1.25555]
[1744780394723,1.25554,1593.1,1593.0,2.94735]
[1744780394921,1.25554,1593.1,1593.0,1.6918]
[1744780395722,1.25575,1592.8,1592.7,12.78453965]
[1744780397126,1.25575,1592.8,1592.7,14.39853965]
[1744780397532,1.25575,1592.8,1592.7,6.08703973]
[1744780397722,1.25575,1592.8,1592.7,4.83121973]
[1744780398222,1.25575,1592.8,1592.7,0.00941973]
[1744780398835,6.25575,1592.8,1592.7,0.00941973]
[1744780399728,7.95965,1592.8,1592.7,0.00941973]
[1744780403829,17.10345,1592.8,1592.7,9.73e-06]
[1744780404134,1.25606,1592.4,1592.3,3.2078]
[1744780404430,5.58506,1592.4,1592.3,3.2078]
[1744780405037,8.21026,1592.4,1592.3,3.2078]
[1744780407031,1.25614,1592.3,1592.2,0.00941973]
[1744780407229,2.89294,1592.3,1592.2,0.00941973]
[1744780407729,1.25614,1592.3,1592.2,0.00941973]
[1744780408125,1.25614,1592.3,1592.2,1.67911973]
[1744780408326,5.58614,1592.3,1592.2,1.67911973]
[1744780409021,7.22294,1592.3,1592.2,0.00941973]
[1744780411031,13.15894,1592.3,1592.2,0.00941973]
[1744780411226,18.63895583,1592.3,1592.2,9.73e-06]
[1744780412331,18.75073596,1592.3,1592.2,9.73e-06]
[1744780413224,13.6478,1592.2,1591.1,11.51929992]
[1744780413423,1.25693,1591.3,1591.2,1.7524]
[1744780413628,5.58793,1591.3,1591.2,1.7524]
[1744780415834,1.25701,1591.2,1591.1,0.00941973]
[1744780416137,1.25701,1591.2,1591.1,0.83131973]
[1744780416333,1.25701,1591.2,1591.1,0.00941973]
[1744780417027,1.25701,1591.2,1591.1,1.64441973]
[1744780425140,1.25701,1591.2,1591.1,4.85221973]
[1744780435449,1.25701,1591.2,1591.1,0.00941973]
[1744780435650,4.69001,1591.2,1591.1,0.00941973]
[1744780442961,9.69001,1591.2,1591.1,0.00941973]
[1744780445450,4.69001,1591.2,1591.1,0.00941973]
[1744780448663,9.69001,1591.2,1591.1,0.00941973]
[1744780448853,4.69001,1591.2,1591.1,0.00941973]
[1744780451459,9.02301,1591.2,1591.1,0.00941973]
[1744780452162,4.69001,1591.2,1591.1,0.00941973]
[1744780452663,9.02301,1591.2,1591.1,0.00941973]
[1744780453556,7.29041,1591.2,1591.1,0.00941973]
[1744780454458,2.95741,1591.2,1591.1,1.73411973]
[1744780454659,7.29041,1591.2,1591.1,1.73411973]
[1744780456260,2.95741,1591.2,1591.1,1.73411973]
[1744780456461,7.29041,1591.2,1591.1,1.73411973]
[1744780456668,2.95741,1591.2,1591.1,1.73411973]
[1744780456964,7.29041,1591.2,1591.1,1.73411973]
[1744780457464,9.02751,1591.2,1591.1,1.73411973]
[1744780458463,9.02751,1591.2,1591.1,0.00941973]
[1744780462063,7.29041,1591.2,1591.1,0.00941973]
[1744780462266,7.29041,1591.2,1591.1,1.71691973]
[1744780483197,5.59001,1591.2,1591.1,1.71691973]
[1744780484398,5.59001,1591.2,1591.1,2.56581973]
[1744780484593,5.59001,1591.2,1591.1,5.77361973]
[1744780488094,5.58901,1591.2,1591.1,5.77361973]
[1744780488800,1.25701,1591.2,1591.1,5.77361973]
[1744780489000,5.58901,1591.2,1591.1,5.77361973]
[1744780501105,5.58901,1591.2,1591.1,1.71691973]
[1744780501301,7.29201,1591.2,1591.1,1.71691973]
[1744780502610,7.29201,1591.2,1591.1,0.00941973]
[1744780502801,12.29201,1591.2,1591.1,0.00941973]
[1744780503104,18.22801,1591.2,1591.1,0.00941973]
[1744780503308,18.22801,1591.2,1591.1,9.73e-06]
[1744780504412,1.25725,1590.9,1590.8,1.6527]
[1744780504613,5.58625,1590.9,1590.8,1.6527]
[1744780509818,1.25732,1590.8,1590.7,0.00941973]
[1744780510012,1.25732,1590.8,1590.7,1.64781973]
[1744780510213,2.88772,1590.8,1590.7,1.64781973]
[1744780511218,2.88772,1590.8,1590.7,0.00941973]
[1744780522131,2.88772,1590.8,1590.7,9.73e-06]
[1744780522337,7.88772,1590.8,1590.7,9.73e-06]
[1744780522931,2.88772,1590.8,1590.7,9.73e-06]
[1744780524229,3.3551902,1590.8,1590.7,9.73e-06]
[1744780524835,8.3551902,1590.8,1590.7,9.73e-06]
[1744780525043,13.3847802,1590.8,1590.2,1.6698]
[1744780525335,1.25772,1590.3,1590.2,1.6698]
[1744780525532,5.58472,1590.3,1590.2,1.6698]
[1744780528235,5.58472,1590.3,1590.2,3.269]
[1744780530040,5.58472,1590.3,1590.2,2.4683]
[1744780532341,7.16462,1590.3,1590.2,2.4683]
[1744780533044,1.2578,1590.2,1590.1,0.00941973]
[1744780533341,6.0455,1590.2,1590.1,0.00941973]
[1744780533540,2.8377,1590.2,1590.1,0.00941973]
[1744780536043,1.2578,1590.2,1590.1,0.00941973]
[1744780536344,5.5858,1590.2,1590.1,3.21721973]
[1744780536538,1.2578,1590.2,1590.1,3.21721973]
[1744780536840,5.5858,1590.2,1590.1,3.21721973]
[1744780541954,4.328,1590.2,1590.1,8.21721973]
[1744780542254,5.5858,1590.2,1590.1,9.47509973]
[1744780542850,5.5858,1590.2,1590.1,8.21721973]
[1744780543250,5.5858,1590.2,1590.1,9.80571973]
[1744780543952,5.5858,1590.2,1590.1,10.27675085]
[1744780544253,5.5858,1590.2,1590.1,9.80571973]
[1744780544958,5.5858,1590.2,1590.1,11.06359973]
[1744780545154,0.00941973,1590.4,1590.2,1.25772]
[1744780545358,0.00941973,1590.4,1590.3,5.79455183]
[1744780545548,1.26705973,1590.4,1590.3,5.79455183]
[1744780545748,1.26705973,1590.4,1590.3,12.40375183]
[1744780546053,0.00941973,1590.4,1590.3,12.40375183]
[1744780546357,1.26705973,1590.4,1590.3,12.40375183]
[1744780547159,0.00941973,1590.4,1590.3,12.40375183]
[1744780548558,0.00941973,1590.4,1590.3,12.40364328]
[1744780551951,1.2576,1590.5,1590.4,1.25764]
[1744780552158,1.2576,1590.5,1590.4,3.46976328]
[1744780553059,1.2576,1590.5,1590.4,2.99894]
[1744780553260,1.2576,1590.5,1590.4,3.46973566]
[1744780553461,1.2576,1590.5,1590.4,2.99894]
[1744780560065,1.26697973,1590.6,1590.5,1.25756]
[1744780560362,1.26697973,1590.6,1590.5,6.10866]
[1744780562157,2.85737973,1590.6,1590.5,6.10866]
[1744780566268,2.85737973,1590.6,1590.5,4.8511]
[1744780567965,2.85737973,1590.6,1590.5,6.10866]
[1744780568270,2.85737973,1590.6,1590.5,3.2078]
[1744780570068,2.85737973,1590.6,1590.5,4.46536]
[1744780570271,2.85737973,1590.6,1590.5,3.2078]
[1744780571771,2.85737973,1590.6,1590.5,4.46536]
[1744780571965,2.85737973,1590.6,1590.5,6.19626]
[1744780572267,2.85737973,1590.6,1590.5,3.68000522]
[1744780574471,2.85737973,1590.6,1590.5,4.93756522]
[1744780575471,2.85737973,1590.6,1590.5,3.68000522]
[1744780576171,7.85737973,1590.6,1590.3,3.2078]
[1744780576374,1.25764,1590.4,1590.3,3.2078]
[1744780576568,5.58064,1590.4,1590.3,3.2078]
[1744780576768,8.12774,1590.4,1590.3,3.2078]
[1744780581373,3.80474,1590.4,1590.3,3.2078]
[1744780581577,0.8754,1590.5,1590.4,1.25764]
[1744780581881,2.13301,1590.5,1590.4,1.72930293]
[1744780584180,2.13301,1590.5,1590.4,1.72903928]
[1744780584973,1.25761,1590.5,1590.4,1.72903928]
[1744780585982,1.25761,1590.5,1590.4,1.25764]
[1744780586183,1.25761,1590.5,1590.4,1.72897954]
[1744780590185,7.62531973,1590.6,1590.5,1.25756]
[1744780590186,1.26689973,1590.6,1590.5,1.25756]
[1744780590386,1.26689973,1590.6,1590.5,4.93669954]
[1744780590686,0.00941973,1590.6,1590.5,4.93669954]
[1744780591198,0.00941973,1590.6,1590.5,9.93669954]
[1744780591199,1e-08,1590.6,1590.5,9.93669954]
[1744780591583,1e-08,1590.6,1590.5,50.73669954]
[1744780593094,1e-08,1590.6,1590.5,79.40046381]
[1744780593296,1e-08,1590.6,1590.5,79.39961769]
[1744780593592,1e-08,1590.6,1590.5,81.06801769]
[1744780595797,1e-08,1590.6,1590.5,76.80371656]
[1744780598396,1e-08,1590.6,1590.5,76.80390416]
[1744780598696,1e-08,1590.6,1590.5,85.10056619]
[1744780601495,1e-08,1590.6,1590.5,55.70110305]
[1744780602394,1e-08,1590.6,1590.5,55.70077703]
[1744780603998,1.66350001,1590.6,1590.5,55.70077703]
[1744780604297,1.66350001,1590.6,1590.5,47.40425504]
[1744780604995,1e-08,1590.6,1590.5,47.40425504]
[1744780605194,2.4454,1591.1,1591.0,1.25717]
[1744780605401,3.3013,1591.1,1591.0,4.46497]
[1744780605992,3.3013,1591.1,1591.0,6.21417]
[1744780607199,3.3013,1591.1,1591.0,6.6842343]
[1744780607403,3.3013,1591.1,1591.0,6.68422871]
[1744780609403,0.8559,1591.1,1591.0,6.68422871]
[1744780609702,2.5484,1591.3,1591.2,1.25701]
[1744780609902,2.5484,1591.3,1591.2,4.93470797]
[1744780610300,2.5484,1591.3,1591.2,6.64630797]
[1744780610500,2.5484,1591.3,1591.2,7.46020797]
[1744780610999,1.2567,1591.7,1591.6,1.25667]
[1744780611191,5.57459,1591.8,1591.7,1.25661]
[1744780611797,5.57459,1591.8,1591.7,42.05661]
[1744780612298,1.25659,1591.8,1591.7,42.05661]
[1744780612498,1.25659,1591.8,1591.7,43.70261]
[1744780612698,2.13361,1591.9,1591.8,1.25653]
[1744780612901,0.8771,1591.9,1591.8,4.46433]
[1744780613203,0.8771,1591.9,1591.8,6.97363]
[1744780613591,0.8771,1591.9,1591.8,7.79073]
[1744780614507,0.8771,1591.9,1591.8,48.59073]
[1744780615302,2.13356,1591.9,1591.8,44.0078]
[1744780615808,1.25653,1591.8,1591.7,0.00941973]
[1744780615999,3.80733,1591.8,1591.7,1.26602973]
[1744780616199,3.80733,1591.8,1591.7,42.06602973]
[1744780616714,3.80733,1591.8,1591.7,40.80941973]
[1744780617214,3.80733,1591.8,1591.7,42.06602973]
[1744780618614,2.5508,1591.8,1591.7,42.06602973]
[1744780618815,2.5508,1591.8,1591.7,43.64642973]
[1744780619916,0.8546,1591.8,1591.7,43.64642973]
[1744780620112,0.8546,1591.8,1591.7,44.46192973]
[1744780620313,0.8771,1591.9,1591.8,1.25653]
[1744780620513,1.7465,1591.9,1591.8,6.20193]
[1744780620717,3.00296,1591.9,1591.8,6.20193]
[1744780620913,1.7465,1591.9,1591.8,6.20193]
[1744780621113,3.00296,1591.9,1591.8,6.20193]
[1744780621312,4.65826,1591.9,1591.8,6.20193]
[1744780622211,7.4586,1592.2,1591.8,6.20193]
[1744780622212,4.318,1592.2,1592.0,1.2563]
[1744780622412,5.57422,1592.2,1592.1,3.2078]
[1744780622615,3.13983,1592.6,1592.2,1.25616]
[1744780622807,1.25606,1592.4,1592.3,45.26392]
[1744780623007,1.25606,1592.4,1592.3,44.0078]
[1744780624007,1.6607,1592.5,1592.3,45.26388]
[1744780624208,1.6607,1592.5,1592.4,1.25606]
[1744780624407,3.407,1592.5,1592.4,1.25606]
[1744780624608,4.66298,1592.5,1592.3,45.26387]
[1744780624906,3.00236,1592.4,1592.3,45.26387]
[1744780625511,1.6607,1592.5,1592.4,1.25606]
[1744780625711,4.66298,1592.5,1592.4,1.25606]
[1744780625913,4.66298,1592.5,1592.4,2.99166]
[1744780626518,3.407,1592.5,1592.4,2.99166]
[1744780628020,4.66298,1592.5,1592.4,2.99166]
[1744780628922,3.407,1592.5,1592.4,2.99166]
[1744780629616,4.66298,1592.5,1592.4,2.99166]
[1744780630018,1.25596,1592.6,1592.5,1.25598]
[1744780630223,1.25576,1592.8,1592.7,1.25576]
[1744780630415,1.25576,1592.8,1592.7,4.46356]
[1744780630616,2.93626,1592.8,1592.7,3.2078]
[1744780630816,2.93626,1592.8,1592.7,4.46362]
[1744780631120,2.93626,1592.8,1592.7,6.04782]
[1744780631513,2.93626,1592.8,1592.7,1.5842]
[1744780631714,2.93626,1592.8,1592.7,6.04782]
[1744780631926,2.93626,1592.8,1592.7,4.792]
[1744780632122,1.25582,1592.7,1592.6,0.00941973]
[1744780632327,2.95202,1592.7,1592.6,0.00941973]
[1744780632625,7.95202,1592.7,1592.6,0.00941973]
[1744780635127,1.25606,1592.4,1592.3,40.8]
[1744780635325,5.56606,1592.4,1592.3,40.8]
[1744780635627,1.25622,1592.2,1592.1,4.46409]
[1744780636017,1.25622,1592.2,1592.1,45.26409]
[1744780636513,3.74361973,1592.3,1592.2,1.25622]
[1744780636711,0.80611973,1592.3,1592.2,2.96222]
[1744780636927,0.00941973,1592.3,1592.2,2.96222]
[1744780637320,5.1817,1592.6,1592.2,7.96222]
[1744780637523,6.4376,1592.6,1592.5,3.2078]
[1744780637914,6.4376,1592.6,1592.5,4.9138]
[1744780639024,6.4376,1592.6,1592.5,6.16978]
[1744780640221,6.4376,1592.6,1592.5,4.9138]
[1744780641025,2.05259,1592.7,1592.6,1.2559]
[1744780641219,1.25589,1592.7,1592.6,3.7947]
[1744780641718,5.56581,1592.8,1592.6,2.5388]
[1744780642021,5.56581,1592.8,1592.7,7.00312]
[1744780642325,1.25581,1592.8,1592.7,7.00312]
[1744780642521,1.25581,1592.8,1592.7,47.80312]
[1744780642721,1.25581,1592.8,1592.7,46.5473]
[1744780644727,1.25581,1592.8,1592.7,43.3395]
[1744780645527,1.25581,1592.8,1592.7,42.4797]
[1744780645732,1.25582,1592.7,1592.6,0.8591]
[1744780646031,5.56182,1592.7,1592.6,2.5901]
[1744780648432,5.56182,1592.7,1592.6,1.731]
[1744780648639,1.2559,1592.6,1592.5,44.0078]
[1744780648929,4.5591,1592.6,1592.5,44.0078]
[1744780649133,4.5591,1592.6,1592.5,3.2078]
[1744780649330,2.1132,1592.6,1592.5,3.2078]
[1744780649633,2.1132,1592.6,1592.5,45.6903]
[1744780650740,1.25629,1592.2,1592.0,5.57172973]
[1744780651038,1.25629,1592.2,1592.1,1.27144214]
[1744780651236,1.25629,1592.2,1592.1,42.07144214]
[1744780651537,1.25622,1592.2,1592.1,42.07151077]
[1744780651737,1.25622,1592.2,1592.1,42.8568]
[1744780651928,1.25622,1592.2,1592.1,43.32803443]
[1744780652134,2.11621,1592.3,1592.2,1.25622]
[1744780652335,2.11621,1592.3,1592.2,2.17816871]
[1744780652531,2.11621,1592.3,1592.2,1.7068]
[1744780652837,3.86821,1592.3,1592.2,1.7068]
[1744780657229,1.25622,1592.2,1592.1,40.8]
[1744780657431,3.66122,1592.2,1592.1,40.8]
[1744780657633,1.2563,1592.1,1592.0,0.00941973]
[1744780657940,7.1446,1592.1,1592.0,0.00941973]
[1744780658132,12.1446,1592.1,1592.0,0.00941973]
[1744780659143,12.65004729,1592.1,1592.0,0.00941973]
[1744780659348,12.1446,1592.1,1592.0,9.73e-06]
[1744780660743,1.25661,1591.7,1591.6,20.74319017]
[1744780660943,8.77141,1591.7,1591.6,20.74319017]
[1744780661843,10.50991,1591.7,1591.6,20.74319017]
[1744780662540,1.25669,1591.6,1591.5,16.05018719]
[1744780662745,2.96519,1591.6,1591.5,4.22827673]
[1744780662931,9.96217823,1591.6,1591.2,23.71245809]
[1744780663134,1.25709,1591.1,1591.0,1.6042]
[1744780663343,8.77189,1591.1,1591.0,1.6042]
[1744780664142,8.77189,1591.1,1590.8,8.29993843]
[1744780664143,1.25717,1591.0,1590.9,0.00941973]
[1744780664543,2.96567,1591.0,1590.9,1.61361973]
[1744780674550,5.56717,1591.0,1590.9,1.61361973]
[1744780675144,4.31,1591.0,1590.9,6.61361973]
[1744780675347,4.31,1591.0,1590.9,7.87086973]
[1744780675547,5.56717,1591.0,1590.9,7.87086973]
[1744780676347,1.25714,1591.1,1591.0,1.25717]
[1744780676548,1.25714,1591.1,1591.0,1.5794]
[1744780677450,5.57248973,1591.2,1591.0,1.5794]
[1744780677644,5.57248973,1591.2,1591.1,0.7984]
[1744780677844,5.57248973,1591.2,1591.1,1.5933]
[1744780679744,5.57248973,1591.2,1591.1,3.282]
[1744780679945,0.00941973,1591.2,1591.1,4.53909]
[1744780681842,1.26642973,1591.2,1591.1,4.53909]
[1744780683651,1.26642973,1591.2,1591.1,3.282]
[1744780686541,1.25717,1591.0,1590.9,0.00941973]
[1744780686756,8.77097,1591.0,1590.9,0.00941973]
[1744780688151,3.2078,1591.0,1590.9,1.26666973]
[1744780688354,4.306,1591.1,1591.0,1.25714]
[1744780688547,0.00941973,1591.2,1591.1,1.25709]
[1744780689045,0.00941973,1591.2,1591.1,3.86679]
[1744780690351,0.00941973,1591.2,1591.1,4.33815526]
[1744780690555,1.26642973,1591.2,1591.1,4.33815526]
[1744780692259,1.26642973,1591.2,1591.1,2.6097]
[1744780693554,4.47422973,1591.2,1591.1,1.7426]
[1744780693758,2.92512973,1591.2,1591.1,1.7426]
[1744780694359,6.13292973,1591.2,1591.1,1.7426]
[1744780698057,1.25709,1591.1,1591.0,0.8714]
[1744780698259,2.85699,1591.1,1591.0,2.499]
[1744780698665,2.85699,1591.1,1591.0,1.6276]
[1744780698850,3.70769,1591.1,1591.0,1.6276]
[1744780702657,4.51169,1591.1,1591.0,1.6276]
[1744780704865,1.26647973,1591.2,1591.0,1.6276]
[1744780705067,0.00941973,1591.2,1591.1,2.06039]
[1744780705265,0.00941973,1591.2,1591.1,4.12322328]
[1744780705467,0.00941973,1591.2,1591.1,9.12322328]
[1744780705966,0.00941973,1591.2,1591.1,9.12307148]
[1744780707660,0.00941973,1591.2,1591.1,9.12284786]
[1744780709065,0.00941973,1591.2,1591.1,4.12284786]
[1744780709465,0.00941973,1591.2,1591.1,4.12267555]
[1744780709666,1.26642973,1591.2,1591.1,2.86558555]
[1744780709862,1.26642973,1591.2,1591.1,2.3937]
[1744780710772,1.25717,1591.0,1590.9,0.00941973]
[1744780710973,1.25717,1591.0,1590.9,1.74731973]
[1744780712177,1.25717,1591.0,1590.9,3.00456973]
[1744780712377,1.25717,1591.0,1590.9,1.74731973]
[1744780714778,2.92237,1591.0,1590.9,1.74731973]
[1744780716280,2.92237,1591.0,1590.9,3.00456973]
[1744780716487,1.25717,1591.0,1590.9,3.00456973]
[1744780718477,1.25717,1591.0,1590.9,1.74731973]
[1744780719177,2.84447,1591.0,1590.9,1.74731973]
[1744780719682,6.05227,1591.0,1590.9,1.74731973]
[1744780719877,6.05227,1591.0,1590.9,0.00941973]
[1744780721583,11.05227,1591.0,1590.9,0.00941973]
[1744780723576,11.56310079,1591.0,1590.9,0.00941973]
[1744780723775,11.05227,1591.0,1590.9,0.00941973]
[1744780725482,11.55798244,1591.0,1590.9,0.00941973]
[1744780725684,11.05227,1591.0,1590.9,0.00941973]
[1744780726384,6.05227,1591.0,1590.9,0.00941973]
[1744780727893,6.91787,1591.0,1590.9,0.00941973]
[1744780740301,12.85387,1591.0,1590.9,0.00941973]
[1744780742502,17.85387,1591.0,1590.9,9.73e-06]
[1744780743104,1.25756,1590.5,1590.4,0.8258]
[1744780743307,1.25764,1590.4,1590.3,1.7494]
[1744780743609,5.27264,1590.4,1590.3,1.7494]
[1744780743902,10.7472,1590.4,1589.7,15.71037608]
[1744780744103,1.25812,1589.8,1589.7,12.50257608]
[1744780744412,4.46592,1589.8,1589.7,12.50257608]
[1744780745108,4.46592,1589.8,1589.7,15.01807608]
[1744780745294,4.46592,1589.8,1589.7,15.81077608]
[1744780747600,4.46592,1589.8,1589.7,1.7085]
[1744780747807,6.21082,1589.8,1589.7,1.7085]
[1744780748109,4.46592,1589.8,1589.7,1.7085]
[1744780748607,6.21082,1589.8,1589.7,1.7085]
[1744780748995,4.46592,1589.8,1589.7,1.7085]
[1744780749809,6.21082,1589.8,1589.7,1.7085]
[1744780751913,4.46592,1589.8,1589.7,1.7085]
[1744780752115,6.15932,1589.8,1589.7,1.7085]
[1744780753920,4.46592,1589.8,1589.7,1.7085]
[1744780758916,1.25819,1589.7,1589.6,0.00941973]
[1744780759213,3.82919,1589.7,1589.6,0.00941973]
[1744780759618,8.82919,1589.7,1589.6,0.00941973]
[1744780760715,8.82919,1589.7,1589.6,9.73e-06]
[1744780760916,1.25859,1589.2,1589.1,1.6791]
[1744780761111,1.25883,1588.9,1588.8,3.2078]
[1744780761322,5.56183,1588.9,1588.8,44.0078]
[1744780761522,4.303,1588.9,1588.8,49.0078]
[1744780761818,5.56183,1588.9,1588.8,49.0078]
[1744780762129,1.26818973,1589.0,1588.8,51.07471]
[1744780762427,1.26818973,1589.0,1588.9,1.6761]
[1744780763023,1.26818973,1589.0,1588.9,6.6761]
[1744780764320,4.304,1589.3,1588.9,7.93493]
[1744780764525,4.304,1589.6,1589.1,3.2078]
[1744780764719,4.304,1589.6,1589.3,1.2585]
[1744780765018,1.25841,1589.5,1589.4,2.5648]
[1744780767323,1.25841,1589.5,1589.4,3.82323]
[1744780768730,1.25841,1589.5,1589.4,2.5648]
[1744780769332,1.25841,1589.5,1589.4,3.82323]
[1744780770331,1.25841,1589.5,1589.4,2.5648]
[1744780770727,1.25841,1589.5,1589.4,3.82323]
[1744780770927,1.25841,1589.5,1589.4,2.5648]
[1744780772029,1.25841,1589.5,1589.4,3.82323]
[1744780773135,1.25841,1589.5,1589.4,2.5648]
[1744780774345,1.25841,1589.5,1589.4,3.82323]
[1744780775635,1.25841,1589.5,1589.4,2.5648]
[1744780776338,4.46621,1589.5,1589.4,2.5648]
[1744780776548,4.46621,1589.5,1589.4,1.7284]
[1744780776749,7.85091,1589.5,1589.4,1.7284]
[1744780778655,1.25841,1589.5,1589.4,1.7284]
[1744780785363,1.25851,1589.3,1589.2,0.7998]
[1744780785562,5.55951,1589.3,1589.2,2.432]
[1744780786062,1.25859,1589.2,1589.1,3.2078]
[1744780786262,2.97579,1589.2,1589.1,3.2078]
[1744780789262,1.25859,1589.2,1589.1,3.2078]
[1744780789455,1.25859,1589.2,1589.1,4.0788]
[1744780790967,1.25859,1589.2,1589.1,0.871]
[1744780791965,1.25867,1589.1,1589.0,1.6322]
[1744780792166,1.25867,1589.1,1588.9,0.838]
[1744780792167,1.25875,1589.0,1588.9,0.838]
[1744780792366,1.25883,1588.9,1588.8,43.3368]
[1744780792868,2.94643,1588.9,1588.8,1.6709]
[1744780795661,1.25883,1588.9,1588.8,1.6709]
[1744780799469,2.95333,1588.9,1588.8,1.6709]
[1744780801357,1.25891,1588.8,1588.7,0.00941973]
[1744780801562,8.74431,1588.8,1588.7,0.00941973]
[1744780802173,9.24138307,1588.8,1588.7,0.00941973]
[1744780804172,9.70512677,1588.8,1588.7,0.00941973]
[1744780804771,4.2080537,1588.8,1588.7,0.00941973]
[1744780805069,9.70112523,1588.8,1588.7,0.00941973]
[1744780807265,9.70112523,1588.8,1588.7,9.73e-06]
[1744780810376,4.70112523,1588.8,1588.7,9.73e-06]
[1744780814170,9.70112523,1588.8,1588.7,9.73e-06]
[1744780815180,9.70112523,1588.8,1588.4,1.5912]
[1744780815181,1.25915,1588.5,1588.4,1.5912]
[1744780815479,1.25922,1588.4,1588.3,0.8054]
[1744780816172,1.25922,1588.4,1588.3,7.4403]
[1744780816373,1.25922,1588.4,1588.3,2.4403]
[1744780816775,1.25922,1588.4,1588.3,7.4403]
[1744780817080,5.56022,1588.4,1588.3,7.4403]
[1744780820982,5.56022,1588.4,1588.3,2.4403]
[1744780823485,1.26860973,1588.5,1588.3,7.4403]
[1744780823689,1.26856973,1588.5,1588.4,2.96872]
[1744780824189,1.26856973,1588.5,1588.4,6.7095]
[1744780825394,1.26856973,1588.5,1588.4,1.7095]
[1744780825982,1.26856973,1588.5,1588.4,2.96872]
[1744780826184,1.26856973,1588.5,1588.4,1.7095]
[1744780826691,1.26856973,1588.5,1588.4,2.96872]
[1744780826989,1.26856973,1588.5,1588.4,8.4426189]
[1744780827490,1.26856973,1588.5,1588.4,7.1833989]
[1744780827689,1.26856973,1588.5,1588.4,8.4426189]
[1744780827890,1.26856973,1588.5,1588.4,2.1833989]
[1744780828785,5.56956973,1588.5,1588.4,2.1833989]
[1744780830793,5.56956973,1588.5,1588.4,1.7095]
[1744780836000,8.77736973,1588.5,1588.4,1.7095]
[1744780836200,10.40496973,1588.5,1588.4,1.7095]
[1744780837202,8.77736973,1588.5,1588.4,1.7095]
[1744780838301,10.40496973,1588.5,1588.4,1.7095]
[1744780838997,10.40496973,1588.5,1588.3,0.8054]
[1744780838998,1.2593,1588.3,1588.2,0.84521973]
[1744780839198,1.2593,1588.3,1588.2,3.40971973]
[1744780841604,2.0992,1588.3,1588.2,2.57391973]
[1744780841798,3.7791,1588.3,1588.2,2.57391973]
[1744780841999,1.2593,1588.3,1588.2,2.57391973]
[1744780842205,1.2593,1588.3,1588.2,3.41791973]
[1744780843105,2.8568,1588.3,1588.2,3.41791973]
[1744780844603,2.8568,1588.3,1588.2,1.72441973]
[1744780845706,1.2593,1588.3,1588.2,1.72441973]
[1744780845907,1.2593,1588.3,1588.2,2.53291973]
[1744780846108,1.2593,1588.3,1588.2,3.34521973]
[1744780847406,1.2593,1588.3,1587.5,43.33116531]
[1744780847601,1.2593,1588.3,1587.3,25.12911739]
[1744780847602,1.26041,1586.9,1586.8,42.11614454]
[1744780847801,8.76621,1586.9,1586.8,38.86787132]
[1744780848101,4.46821,1586.9,1586.8,45.16547132]
[1744780848303,3.23657671,1587.6,1586.8,45.16547132]
[1744780848304,3.71532116,1587.3,1586.9,6.2976]
[1744780848508,3.21725269,1587.3,1586.9,12.46165269]